[Event "Early-Titled-Tuesday-Blitz-September-12-2023"]
[Site "Chess.com"]
[Date "2023.09.12"]
[Round "8"]
[White "Zavgorodniy_Sergiy"]
[Black "djano"]
[Result "0-1"]
[WhiteElo "2526"]
[BlackElo "2646"]
[TimeControl "180+1"]
[EndTime "9:25:29 PDT"]
[Termination "djano won by checkmate"]

1. d4 {[%clk 0:03:00.9]} 1... d5 {[%clk 0:02:59.5]} 2. c4 {[%clk 0:03:01.2]}
2... e6 {[%clk 0:02:59]} 3. Nf3 {[%clk 0:03:01.6]} 3... c5 {[%clk 0:02:59]} 4.
dxc5 {[%clk 0:03:01.4]} 4... Bxc5 {[%clk 0:02:58.6]} 5. e3 {[%clk 0:03:01.9]}
5... Nf6 {[%clk 0:02:58.5]} 6. a3 {[%clk 0:03:02.2]} 6... Nc6 {[%clk 0:02:58]}
7. b4 {[%clk 0:03:02.4]} 7... Bd6 {[%clk 0:02:58.3]} 8. Bb2 {[%clk 0:03:02.7]}
8... O-O {[%clk 0:02:57.7]} 9. Nbd2 {[%clk 0:03:03.1]} 9... a5 {[%clk 0:02:49]}
10. b5 {[%clk 0:03:03]} 10... Ne7 {[%clk 0:02:47.3]} 11. Be2 {[%clk 0:03:03.2]}
11... b6 {[%clk 0:02:44.8]} 12. O-O {[%clk 0:03:03.2]} 12... Bb7 {[%clk
0:02:45.4]} 13. Rc1 {[%clk 0:03:02.8]} 13... Ng6 {[%clk 0:02:40.9]} 14. cxd5
{[%clk 0:03:02.9]} 14... Bxd5 {[%clk 0:02:34.7]} 15. Nc4 {[%clk 0:03:03.1]}
15... Bc7 {[%clk 0:02:26.1]} 16. Nd4 {[%clk 0:03:02.9]} 16... Ne4 {[%clk
0:02:15.1]} 17. Bf3 {[%clk 0:03:00]} 17... Nh4 {[%clk 0:02:00.4]} 18. Bxe4
{[%clk 0:02:37.5]} 18... Bxe4 {[%clk 0:01:56.9]} 19. Qg4 {[%clk 0:02:37.7]}
19... f5 {[%clk 0:01:20.3]} 20. Qe2 {[%clk 0:02:37.4]} 20... Nxg2 {[%clk
0:00:39.1]} 21. Nxe6 {[%clk 0:02:36.7]} 21... Bxh2+ {[%clk 0:00:35]} 22. Kxh2
{[%clk 0:02:35.8]} 22... Qh4+ {[%clk 0:00:35]} 23. Kg1 {[%clk 0:02:36.1]} 23...
Nf4 {[%clk 0:00:31.2]} 24. f3 {[%clk 0:02:32.1]} 24... Nxe2+ {[%clk 0:00:28.7]}
25. Kg2 {[%clk 0:02:31]} 25... Qg3+ {[%clk 0:00:28.8]} 26. Kh1 {[%clk
0:02:31.2]} 26... Qh3# {[%clk 0:00:28.8]} 0-1

[Event "Early-Titled-Tuesday-Blitz-September-12-2023"]
[Site "Chess.com"]
[Date "2023.09.12"]
[Round "8"]
[White "Vesper2018"]
[Black "stollenmonster"]
[Result "1-0"]
[WhiteElo "2618"]
[BlackElo "2808"]
[TimeControl "180+1"]
[EndTime "9:26:07 PDT"]
[Termination "Vesper2018 won by resignation"]

1. e4 {[%clk 0:03:00.3]} 1... c5 {[%clk 0:02:59.8]} 2. Nc3 {[%clk 0:02:59.4]}
2... Nc6 {[%clk 0:02:59.6]} 3. Bb5 {[%clk 0:02:59.2]} 3... g6 {[%clk 0:02:59.8]}
4. Bxc6 {[%clk 0:02:59]} 4... dxc6 {[%clk 0:02:59]} 5. d3 {[%clk 0:02:59.5]}
5... e5 {[%clk 0:02:58.8]} 6. f4 {[%clk 0:02:58]} 6... exf4 {[%clk 0:02:59.7]}
7. Bxf4 {[%clk 0:02:58.1]} 7... Bg7 {[%clk 0:02:59.9]} 8. Qd2 {[%clk 0:02:58.1]}
8... h6 {[%clk 0:02:59.7]} 9. Nf3 {[%clk 0:02:53.5]} 9... Ne7 {[%clk 0:02:53.3]}
10. h4 {[%clk 0:02:49.9]} 10... Bg4 {[%clk 0:02:52.5]} 11. Ne5 {[%clk
0:02:44.8]} 11... Be6 {[%clk 0:02:51.7]} 12. O-O-O {[%clk 0:02:44.4]} 12... Qa5
{[%clk 0:02:50]} 13. Kb1 {[%clk 0:02:25.1]} 13... b5 {[%clk 0:02:35.4]} 14. Nd5
{[%clk 0:02:06.4]} 14... b4 {[%clk 0:02:04.6]} 15. Nc4 {[%clk 0:02:05.3]} 15...
Qd8 {[%clk 0:01:53.7]} 16. Nc7+ {[%clk 0:02:00.7]} 16... Kf8 {[%clk 0:01:53.3]}
17. Nxa8 {[%clk 0:01:55]} 17... Qxa8 {[%clk 0:01:52.5]} 18. Bd6 {[%clk 0:01:55]}
18... Bd4 {[%clk 0:01:46.5]} 19. e5 {[%clk 0:01:44.3]} 19... Qb7 {[%clk
0:01:40.2]} 20. Ka1 {[%clk 0:01:43.2]} 20... Qa6 {[%clk 0:01:25.5]} 21. c3
{[%clk 0:01:36.6]} 21... bxc3 {[%clk 0:01:26.4]} 22. bxc3 {[%clk 0:01:36.7]}
22... Kg7 {[%clk 0:01:20.3]} 23. cxd4 {[%clk 0:01:36.6]} 23... Nf5 {[%clk
0:01:18.9]} 24. Bxc5 {[%clk 0:01:31.4]} 24... Rd8 {[%clk 0:01:16.5]} 25. Qf2
{[%clk 0:01:27.1]} 25... Bxc4 {[%clk 0:01:08.7]} 26. dxc4 {[%clk 0:01:27]} 26...
Qxc4 {[%clk 0:01:09.6]} 27. g4 {[%clk 0:01:17.1]} 27... Ra8 {[%clk 0:01:09.5]}
1-0

[Event "Early-Titled-Tuesday-Blitz-September-12-2023"]
[Site "Chess.com"]
[Date "2023.09.12"]
[Round "8"]
[White "Zohid6"]
[Black "Smiechu"]
[Result "1-0"]
[WhiteElo "2736"]
[BlackElo "2478"]
[TimeControl "180+1"]
[EndTime "9:26:29 PDT"]
[Termination "Zohid6 won by checkmate"]

1. d4 {[%clk 0:03:00.9]} 1... Nf6 {[%clk 0:02:59.4]} 2. Nc3 {[%clk 0:03:01.4]}
2... d5 {[%clk 0:02:58.6]} 3. Bf4 {[%clk 0:03:02]} 3... c6 {[%clk 0:02:55.6]} 4.
e3 {[%clk 0:03:02.1]} 4... Bf5 {[%clk 0:02:55.2]} 5. Nf3 {[%clk 0:02:59.8]} 5...
e6 {[%clk 0:02:55.3]} 6. Ne5 {[%clk 0:03:00]} 6... Nbd7 {[%clk 0:02:53.2]} 7. g4
{[%clk 0:03:00.2]} 7... Bg6 {[%clk 0:02:51]} 8. h4 {[%clk 0:02:59.5]} 8... h6
{[%clk 0:02:32.8]} 9. Nxg6 {[%clk 0:02:59.2]} 9... fxg6 {[%clk 0:02:33]} 10. Bd3
{[%clk 0:03:00.1]} 10... Kf7 {[%clk 0:02:23.8]} 11. Qf3 {[%clk 0:03:00.2]} 11...
Bb4 {[%clk 0:02:15]} 12. Ke2 {[%clk 0:02:51.6]} 12... Ke7 {[%clk 0:01:24.8]} 13.
Bxg6 {[%clk 0:02:43.5]} 13... Bxc3 {[%clk 0:01:18.1]} 14. bxc3 {[%clk 0:02:42]}
14... Qa5 {[%clk 0:01:18.7]} 15. g5 {[%clk 0:02:40.4]} 15... hxg5 {[%clk
0:01:17]} 16. hxg5 {[%clk 0:02:41.3]} 16... Ne4 {[%clk 0:01:00.7]} 17. Bxe4
{[%clk 0:02:41.1]} 17... dxe4 {[%clk 0:00:58.5]} 18. Qxe4 {[%clk 0:02:42]} 18...
Qxc3 {[%clk 0:00:58.5]} 19. Qd3 {[%clk 0:02:32.4]} 19... Qa5 {[%clk 0:00:52.6]}
20. Rh7 {[%clk 0:02:25.5]} 20... Rag8 {[%clk 0:00:34.2]} 21. Rb1 {[%clk
0:02:16.9]} 21... b6 {[%clk 0:00:29.2]} 22. Rxh8 {[%clk 0:02:08.1]} 22... Rxh8
{[%clk 0:00:28.8]} 23. Qg6 {[%clk 0:02:08.7]} 23... Rg8 {[%clk 0:00:23.9]} 24.
Qh7 {[%clk 0:02:09]} 24... Kf8 {[%clk 0:00:20.2]} 25. Bd6+ {[%clk 0:02:06.8]}
25... Kf7 {[%clk 0:00:20.1]} 26. g6+ {[%clk 0:02:06.8]} 26... Kf6 {[%clk
0:00:16.2]} 27. Qh4+ {[%clk 0:02:00.4]} 27... Kxg6 {[%clk 0:00:12.8]} 28. Rg1+
{[%clk 0:02:00.1]} 28... Kf7 {[%clk 0:00:13.2]} 29. Qe7# {[%clk 0:02:00]} 1-0

[Event "Early-Titled-Tuesday-Blitz-September-12-2023"]
[Site "Chess.com"]
[Date "2023.09.12"]
[Round "8"]
[White "Let_it_be_1"]
[Black "Payyappat"]
[Result "1-0"]
[WhiteElo "2657"]
[BlackElo "2491"]
[TimeControl "180+1"]
[EndTime "9:26:41 PDT"]
[Termination "Let_it_be_1 won by resignation"]

1. e4 {[%clk 0:03:00.9]} 1... c6 {[%clk 0:03:00]} 2. d4 {[%clk 0:02:58]} 2... d5
{[%clk 0:02:59.1]} 3. Nd2 {[%clk 0:02:58.6]} 3... dxe4 {[%clk 0:02:58.4]} 4.
Nxe4 {[%clk 0:02:59.2]} 4... Nf6 {[%clk 0:02:58.4]} 5. Nxf6+ {[%clk 0:02:59.4]}
5... exf6 {[%clk 0:02:59.3]} 6. c3 {[%clk 0:02:59.5]} 6... Bd6 {[%clk
0:03:00.2]} 7. Bd3 {[%clk 0:02:59.8]} 7... O-O {[%clk 0:03:00]} 8. Ne2 {[%clk
0:03:00.4]} 8... Re8 {[%clk 0:02:57.8]} 9. Qc2 {[%clk 0:03:00.6]} 9... h5 {[%clk
0:02:57.6]} 10. Be3 {[%clk 0:03:00.8]} 10... Nd7 {[%clk 0:02:57.5]} 11. O-O-O
{[%clk 0:03:00.1]} 11... Nf8 {[%clk 0:02:58.4]} 12. c4 {[%clk 0:03:00.3]} 12...
Be6 {[%clk 0:02:58.2]} 13. Nc3 {[%clk 0:02:59.7]} 13... Bb4 {[%clk 0:02:55.1]}
14. Ne4 {[%clk 0:02:58.6]} 14... Be7 {[%clk 0:02:54.1]} 15. Kb1 {[%clk
0:02:55.4]} 15... Rc8 {[%clk 0:02:51]} 16. Nc5 {[%clk 0:02:54.9]} 16... b6
{[%clk 0:02:47.2]} 17. Nxe6 {[%clk 0:02:50.1]} 17... Nxe6 {[%clk 0:02:44.9]} 18.
Bh7+ {[%clk 0:02:45.9]} 18... Kh8 {[%clk 0:02:44.1]} 19. Bf5 {[%clk 0:02:45.8]}
19... Nf8 {[%clk 0:02:40.9]} 20. Bxc8 {[%clk 0:02:43]} 20... Qxc8 {[%clk
0:02:39.9]} 21. d5 {[%clk 0:02:43.2]} 21... Bd6 {[%clk 0:02:36.7]} 22. dxc6
{[%clk 0:02:39.5]} 22... Qxc6 {[%clk 0:02:34]} 23. Rd5 {[%clk 0:02:35.1]} 23...
g6 {[%clk 0:02:32.4]} 24. Rhd1 {[%clk 0:02:33.1]} 24... Be5 {[%clk 0:02:25.9]}
25. Rd8 {[%clk 0:02:30.9]} 25... Ne6 {[%clk 0:02:24.9]} 26. Rxe8+ {[%clk
0:02:28.2]} 26... Qxe8 {[%clk 0:02:25.8]} 27. Qe4 {[%clk 0:02:23.6]} 27... Qa4
{[%clk 0:02:18.4]} 28. Qd3 {[%clk 0:02:22.3]} 28... Qb4 {[%clk 0:02:15.1]} 29.
Qc2 {[%clk 0:02:17.6]} 29... f5 {[%clk 0:02:02.3]} 30. g3 {[%clk 0:02:16.8]}
30... a5 {[%clk 0:01:49.1]} 31. a3 {[%clk 0:02:16.2]} 31... Qe7 {[%clk
0:01:45.8]} 32. Bxb6 {[%clk 0:02:11.9]} 32... Qb7 {[%clk 0:01:45.1]} 33. Be3
{[%clk 0:02:09.2]} 33... a4 {[%clk 0:01:41.6]} 34. c5 {[%clk 0:02:08.7]} 34...
Qc6 {[%clk 0:01:29.3]} 35. f4 {[%clk 0:02:08.4]} 35... Bf6 {[%clk 0:01:22.2]}
36. Rd6 {[%clk 0:02:04.8]} 36... Qf3 {[%clk 0:01:15.4]} 37. Qd3 {[%clk
0:01:49.2]} 37... Qg2 {[%clk 0:01:01.6]} 38. Bc1 {[%clk 0:01:47.5]} 38... Nxc5
{[%clk 0:00:43.3]} 39. Qc2 {[%clk 0:01:46.6]} 1-0

[Event "Early-Titled-Tuesday-Blitz-September-12-2023"]
[Site "Chess.com"]
[Date "2023.09.12"]
[Round "8"]
[White "NotFischer"]
[Black "S-Fazulyanov"]
[Result "0-1"]
[WhiteElo "2288"]
[BlackElo "2442"]
[TimeControl "180+1"]
[EndTime "9:26:42 PDT"]
[Termination "S-Fazulyanov won by resignation"]

1. e4 {[%clk 0:03:00.9]} 1... c5 {[%clk 0:03:00.3]} 2. Nf3 {[%clk 0:03:00.6]}
2... Nc6 {[%clk 0:03:00.6]} 3. Bb5 {[%clk 0:02:57.3]} 3... g6 {[%clk 0:03:00.5]}
4. Bxc6 {[%clk 0:02:57.2]} 4... dxc6 {[%clk 0:03:00.4]} 5. d3 {[%clk 0:02:58.1]}
5... Bg7 {[%clk 0:03:00.2]} 6. O-O {[%clk 0:02:58.3]} 6... e5 {[%clk 0:02:59.8]}
7. Nbd2 {[%clk 0:02:58.1]} 7... b6 {[%clk 0:02:58.1]} 8. b3 {[%clk 0:02:58.1]}
8... Be6 {[%clk 0:02:58]} 9. Bb2 {[%clk 0:02:57.5]} 9... f6 {[%clk 0:02:58.5]}
10. Qe2 {[%clk 0:02:53.8]} 10... Ne7 {[%clk 0:02:57.2]} 11. c3 {[%clk
0:02:50.2]} 11... O-O {[%clk 0:02:47.5]} 12. Rad1 {[%clk 0:02:47.4]} 12... Qc7
{[%clk 0:02:34.6]} 13. d4 {[%clk 0:02:47]} 13... cxd4 {[%clk 0:02:35.5]} 14.
cxd4 {[%clk 0:02:47.5]} 14... exd4 {[%clk 0:02:36.1]} 15. Nxd4 {[%clk
0:02:45.3]} 15... Bf7 {[%clk 0:02:36.6]} 16. Nc4 {[%clk 0:02:36.7]} 16... Rad8
{[%clk 0:02:34.5]} 17. f4 {[%clk 0:02:29.3]} 17... Rfe8 {[%clk 0:02:33.9]} 18.
Qf3 {[%clk 0:02:21.2]} 18... Nc8 {[%clk 0:02:22.2]} 19. Rfe1 {[%clk 0:01:52.5]}
19... c5 {[%clk 0:01:52.9]} 20. Nb5 {[%clk 0:01:51.8]} 20... Qc6 {[%clk
0:01:52.8]} 21. a4 {[%clk 0:01:46.3]} 21... Rxd1 {[%clk 0:01:46.2]} 22. Qxd1
{[%clk 0:01:45.7]} 22... Rxe4 {[%clk 0:01:42.8]} 23. Rxe4 {[%clk 0:01:33.6]}
23... Qxe4 {[%clk 0:01:43.3]} 24. Nbd6 {[%clk 0:01:09.9]} 24... Nxd6 {[%clk
0:01:34.9]} 25. Nxd6 {[%clk 0:01:09.3]} 25... Qe3+ {[%clk 0:01:32.4]} 26. Kh1
{[%clk 0:01:09]} 26... Qxb3 {[%clk 0:01:30]} 27. Qd2 {[%clk 0:01:01.7]} 27... f5
{[%clk 0:01:14.6]} 28. Bxg7 {[%clk 0:00:46.9]} 28... Qb1+ {[%clk 0:01:12.3]} 0-1

[Event "Early-Titled-Tuesday-Blitz-September-12-2023"]
[Site "Chess.com"]
[Date "2023.09.12"]
[Round "8"]
[White "surrenderPLS"]
[Black "carloseduar100"]
[Result "1-0"]
[WhiteElo "2482"]
[BlackElo "2291"]
[TimeControl "180+1"]
[EndTime "9:26:45 PDT"]
[Termination "surrenderPLS won by resignation"]

1. e4 {[%clk 0:03:00.9]} 1... e6 {[%clk 0:02:46.6]} 2. d4 {[%clk 0:03:00.5]}
2... d5 {[%clk 0:02:45.6]} 3. Nc3 {[%clk 0:03:01]} 3... Nf6 {[%clk 0:02:45.1]}
4. e5 {[%clk 0:03:01.3]} 4... Nfd7 {[%clk 0:02:45.3]} 5. f4 {[%clk 0:03:02]}
5... c5 {[%clk 0:02:45.8]} 6. Nf3 {[%clk 0:03:02.8]} 6... Nc6 {[%clk 0:02:46.5]}
7. Be3 {[%clk 0:03:03.4]} 7... Qb6 {[%clk 0:02:47.1]} 8. Na4 {[%clk 0:03:02.4]}
8... Qc7 {[%clk 0:02:46.9]} 9. Nxc5 {[%clk 0:03:00.8]} 9... Nxd4 {[%clk
0:02:43.4]} 10. Nxd4 {[%clk 0:02:57.5]} 10... Bxc5 {[%clk 0:02:41.6]} 11. c3
{[%clk 0:02:51.4]} 11... Qb6 {[%clk 0:02:40.7]} 12. b4 {[%clk 0:02:49.5]} 12...
Bxd4 {[%clk 0:02:39.6]} 13. Bxd4 {[%clk 0:02:50.4]} 13... Qd8 {[%clk 0:02:39.9]}
14. Bd3 {[%clk 0:02:47.2]} 14... g6 {[%clk 0:02:39.5]} 15. h4 {[%clk 0:02:46.7]}
15... h5 {[%clk 0:02:38.7]} 16. g4 {[%clk 0:02:46.6]} 16... hxg4 {[%clk
0:02:38.4]} 17. Qxg4 {[%clk 0:02:47.5]} 17... Qe7 {[%clk 0:02:36.1]} 18. h5
{[%clk 0:02:45.6]} 18... Rxh5 {[%clk 0:02:34.2]} 19. Rxh5 {[%clk 0:02:46.5]}
19... gxh5 {[%clk 0:02:35]} 20. Qxh5 {[%clk 0:02:45.2]} 20... b6 {[%clk
0:02:31.6]} 21. a4 {[%clk 0:02:35.5]} 21... Nf8 {[%clk 0:02:30.8]} 22. a5 {[%clk
0:02:34.7]} 22... Rb8 {[%clk 0:02:16.4]} 23. axb6 {[%clk 0:02:25.2]} 23... axb6
{[%clk 0:02:17.3]} 24. Ke2 {[%clk 0:02:22.2]} 24... Bd7 {[%clk 0:02:14.3]} 25.
Ra7 {[%clk 0:02:16.6]} 25... Qd8 {[%clk 0:02:06.9]} 26. Kd2 {[%clk 0:02:10.5]}
26... Ra8 {[%clk 0:02:07]} 27. Bxb6 {[%clk 0:02:09.9]} 27... Qb8 {[%clk
0:01:57.4]} 28. Rxa8 {[%clk 0:02:08.7]} 28... Qxa8 {[%clk 0:01:58.3]} 29. Qg5
{[%clk 0:02:05.8]} 29... Ba4 {[%clk 0:01:18.3]} 30. Bc5 {[%clk 0:01:58.2]} 30...
Qb7 {[%clk 0:00:41.2]} 31. Qg8 {[%clk 0:01:54.5]} 31... Kd7 {[%clk 0:00:26.7]}
32. Qxf8 {[%clk 0:01:53.3]} 32... Kc7 {[%clk 0:00:26]} 33. Qd6+ {[%clk
0:01:52.3]} 33... Kc8 {[%clk 0:00:24.6]} 34. Ba6 {[%clk 0:01:53.2]} 1-0

[Event "Early-Titled-Tuesday-Blitz-September-12-2023"]
[Site "Chess.com"]
[Date "2023.09.12"]
[Round "8"]
[White "TatjanaVasilevich"]
[Black "KorolDimitriy75"]
[Result "1-0"]
[WhiteElo "2559"]
[BlackElo "2381"]
[TimeControl "180+1"]
[EndTime "9:26:47 PDT"]
[Termination "TatjanaVasilevich won on time"]

1. e4 {[%clk 0:03:00.9]} 1... c5 {[%clk 0:02:59.9]} 2. Nf3 {[%clk 0:02:56.7]}
2... d6 {[%clk 0:03:00.1]} 3. d4 {[%clk 0:02:56.8]} 3... cxd4 {[%clk 0:03:01]}
4. Nxd4 {[%clk 0:02:57.4]} 4... Nf6 {[%clk 0:03:01.6]} 5. Nc3 {[%clk 0:02:57.6]}
5... g6 {[%clk 0:03:02.3]} 6. Bg5 {[%clk 0:02:57.4]} 6... Bg7 {[%clk 0:03:02.6]}
7. Qd2 {[%clk 0:02:57.6]} 7... O-O {[%clk 0:03:02.1]} 8. h4 {[%clk 0:02:56.4]}
8... Nc6 {[%clk 0:03:01.9]} 9. Nxc6 {[%clk 0:02:52]} 9... bxc6 {[%clk
0:03:02.8]} 10. h5 {[%clk 0:02:51.8]} 10... Nxh5 {[%clk 0:02:23.5]} 11. Bh6
{[%clk 0:02:47.2]} 11... Qa5 {[%clk 0:01:56.7]} 12. Bxg7 {[%clk 0:02:42.6]}
12... Kxg7 {[%clk 0:01:57.6]} 13. f3 {[%clk 0:02:41.8]} 13... Rb8 {[%clk
0:01:50.6]} 14. g4 {[%clk 0:02:40.9]} 14... Nf6 {[%clk 0:01:44.3]} 15. O-O-O
{[%clk 0:02:33.1]} 15... Be6 {[%clk 0:01:32.4]} 16. Bd3 {[%clk 0:01:51.3]} 16...
h5 {[%clk 0:00:51.9]} 17. gxh5 {[%clk 0:01:49.9]} 17... Nxh5 {[%clk 0:00:43.9]}
18. f4 {[%clk 0:01:49.9]} 18... Rxb2 {[%clk 0:00:29.9]} 19. Kxb2 {[%clk
0:01:28.3]} 1-0

[Event "Early-Titled-Tuesday-Blitz-September-12-2023"]
[Site "Chess.com"]
[Date "2023.09.12"]
[Round "8"]
[White "Zkid"]
[Black "kingofthenil"]
[Result "0-1"]
[WhiteElo "2877"]
[BlackElo "2766"]
[TimeControl "180+1"]
[EndTime "9:26:49 PDT"]
[Termination "kingofthenil won on time"]

1. e4 {[%clk 0:03:00.9]} 1... Nc6 {[%clk 0:02:59.4]} 2. d4 {[%clk 0:03:00.7]}
2... d5 {[%clk 0:03:00.3]} 3. Nc3 {[%clk 0:03:01]} 3... dxe4 {[%clk 0:03:00.6]}
4. d5 {[%clk 0:03:01.7]} 4... Nb8 {[%clk 0:03:01.5]} 5. Nxe4 {[%clk 0:02:55.6]}
5... c6 {[%clk 0:03:00.2]} 6. c4 {[%clk 0:02:49]} 6... e6 {[%clk 0:03:00.5]} 7.
Nf3 {[%clk 0:02:25.2]} 7... exd5 {[%clk 0:02:59.5]} 8. cxd5 {[%clk 0:02:26.1]}
8... cxd5 {[%clk 0:03:00.4]} 9. Nc3 {[%clk 0:02:25.9]} 9... Nf6 {[%clk
0:03:00.2]} 10. Bg5 {[%clk 0:02:21.5]} 10... Bb4 {[%clk 0:02:58.7]} 11. Bd3
{[%clk 0:02:14.8]} 11... O-O {[%clk 0:02:58.6]} 12. O-O {[%clk 0:02:14.9]} 12...
Be6 {[%clk 0:02:58.7]} 13. Nd4 {[%clk 0:02:10.9]} 13... Nc6 {[%clk 0:02:57.5]}
14. Nxe6 {[%clk 0:02:07.6]} 14... fxe6 {[%clk 0:02:58.4]} 15. Re1 {[%clk
0:02:03.8]} 15... e5 {[%clk 0:02:52.1]} 16. Re3 {[%clk 0:01:39]} 16... e4 {[%clk
0:02:00.6]} 17. Bc2 {[%clk 0:01:27.9]} 17... d4 {[%clk 0:01:50]} 18. Bxf6 {[%clk
0:01:07.9]} 18... Rxf6 {[%clk 0:01:50.9]} 19. Rxe4 {[%clk 0:00:50]} 19... dxc3
{[%clk 0:01:50]} 20. Qh5 {[%clk 0:00:49.4]} 20... g6 {[%clk 0:01:45.8]} 21. Qb5
{[%clk 0:00:45.4]} 21... Qb6 {[%clk 0:01:36.7]} 22. Qc4+ {[%clk 0:00:37.9]}
22... Kh8 {[%clk 0:01:35.3]} 23. Rf1 {[%clk 0:00:32.4]} 23... Raf8 {[%clk
0:01:35]} 24. Kh1 {[%clk 0:00:03.8]} 24... Rxf2 {[%clk 0:01:33.4]} 0-1

[Event "Early-Titled-Tuesday-Blitz-September-12-2023"]
[Site "Chess.com"]
[Date "2023.09.12"]
[Round "8"]
[White "Zhigalko_Sergei"]
[Black "Abund"]
[Result "1-0"]
[WhiteElo "2889"]
[BlackElo "2743"]
[TimeControl "180+1"]
[EndTime "9:26:54 PDT"]
[Termination "Zhigalko_Sergei won by resignation"]

1. e4 {[%clk 0:03:00.9]} 1... e5 {[%clk 0:03:00.5]} 2. Nf3 {[%clk 0:03:01.1]}
2... Nc6 {[%clk 0:03:01.3]} 3. Bc4 {[%clk 0:03:01.5]} 3... Bc5 {[%clk
0:03:01.4]} 4. O-O {[%clk 0:03:01.9]} 4... Nf6 {[%clk 0:03:01.9]} 5. d3 {[%clk
0:03:02.2]} 5... O-O {[%clk 0:03:01.9]} 6. Nbd2 {[%clk 0:03:02.5]} 6... d6
{[%clk 0:02:54.1]} 7. c3 {[%clk 0:03:02.5]} 7... a5 {[%clk 0:02:54.6]} 8. h3
{[%clk 0:03:01.7]} 8... Ba7 {[%clk 0:02:52.3]} 9. Re1 {[%clk 0:03:01.7]} 9...
Be6 {[%clk 0:02:45.3]} 10. Bb5 {[%clk 0:03:01]} 10... Ne7 {[%clk 0:02:45.6]} 11.
Nf1 {[%clk 0:02:59.3]} 11... Ng6 {[%clk 0:02:44.8]} 12. Ng3 {[%clk 0:02:57]}
12... c6 {[%clk 0:02:38.2]} 13. Ba4 {[%clk 0:02:56.9]} 13... h6 {[%clk 0:02:35]}
14. d4 {[%clk 0:02:56.7]} 14... exd4 {[%clk 0:02:06.7]} 15. cxd4 {[%clk
0:02:55.8]} 15... d5 {[%clk 0:02:06.8]} 16. e5 {[%clk 0:02:50.5]} 16... Ne4
{[%clk 0:02:07.2]} 17. Bc2 {[%clk 0:02:32.2]} 17... Nxg3 {[%clk 0:01:57.9]} 18.
fxg3 {[%clk 0:02:32.5]} 18... c5 {[%clk 0:01:45.1]} 19. Be3 {[%clk 0:02:09.5]}
19... Rc8 {[%clk 0:01:43.3]} 20. Qd2 {[%clk 0:01:59.9]} 20... cxd4 {[%clk
0:01:17.9]} 21. Bxd4 {[%clk 0:01:58.1]} 21... Bxd4+ {[%clk 0:01:05.3]} 22. Nxd4
{[%clk 0:01:59]} 22... Ne7 {[%clk 0:00:30]} 23. Kh2 {[%clk 0:01:47.7]} 23... Qb6
{[%clk 0:00:18.6]} 24. Rad1 {[%clk 0:01:40]} 24... Rfd8 {[%clk 0:00:18.3]} 25.
Rf1 {[%clk 0:01:38.5]} 25... Nc6 {[%clk 0:00:18.1]} 26. Nxe6 {[%clk 0:01:33.7]}
26... fxe6 {[%clk 0:00:16.9]} 27. Qd3 {[%clk 0:01:34]} 1-0

[Event "Early-Titled-Tuesday-Blitz-September-12-2023"]
[Site "Chess.com"]
[Date "2023.09.12"]
[Round "8"]
[White "Egor_Koshulyan"]
[Black "DrDreBeats"]
[Result "1-0"]
[WhiteElo "2740"]
[BlackElo "2539"]
[TimeControl "180+1"]
[EndTime "9:26:58 PDT"]
[Termination "Egor_Koshulyan won by resignation"]

1. e4 {[%clk 0:03:00.9]} 1... d5 {[%clk 0:03:00]} 2. exd5 {[%clk 0:03:01]} 2...
Qxd5 {[%clk 0:03:00.5]} 3. Nc3 {[%clk 0:03:01]} 3... Qa5 {[%clk 0:03:01.3]} 4.
d4 {[%clk 0:03:01.2]} 4... Nf6 {[%clk 0:03:02]} 5. Nf3 {[%clk 0:03:01.7]} 5...
Nc6 {[%clk 0:03:02.6]} 6. Bb5 {[%clk 0:03:01.3]} 6... Nd5 {[%clk 0:03:02.7]} 7.
O-O {[%clk 0:02:59.1]} 7... Nxc3 {[%clk 0:03:01]} 8. Bxc6+ {[%clk 0:02:59.2]}
8... bxc6 {[%clk 0:03:01.9]} 9. bxc3 {[%clk 0:02:48.4]} 9... Qxc3 {[%clk
0:03:02.8]} 10. Rb1 {[%clk 0:02:48.9]} 10... Bg4 {[%clk 0:03:01.1]} 11. Rb3
{[%clk 0:02:38.7]} 11... Bxf3 {[%clk 0:02:58.8]} 12. Rxc3 {[%clk 0:02:39]} 12...
Bxd1 {[%clk 0:02:58.4]} 13. Rxd1 {[%clk 0:02:39.9]} 13... e6 {[%clk 0:02:49]}
14. Rxc6 {[%clk 0:02:36.5]} 14... Kd7 {[%clk 0:02:48.4]} 15. Rc4 {[%clk
0:02:29.4]} 15... Rb8 {[%clk 0:02:48.3]} 16. Ra4 {[%clk 0:02:23.2]} 16... Rb7
{[%clk 0:02:45.7]} 17. c4 {[%clk 0:02:19.4]} 17... Be7 {[%clk 0:02:44.4]} 18. d5
{[%clk 0:02:09.7]} 18... exd5 {[%clk 0:02:31.5]} 19. Rxd5+ {[%clk 0:02:10.6]}
19... Bd6 {[%clk 0:02:27.5]} 20. g3 {[%clk 0:02:05.3]} 20... Re8 {[%clk
0:02:23.9]} 21. Kg2 {[%clk 0:02:05.4]} 21... Re2 {[%clk 0:02:22.2]} 22. Bf4
{[%clk 0:01:19.2]} 22... Rbb2 {[%clk 0:02:12.8]} 23. c5 {[%clk 0:01:18.8]} 23...
Rxf2+ {[%clk 0:02:01.3]} 24. Kh3 {[%clk 0:01:18.4]} 24... Kc6 {[%clk 0:01:43.4]}
25. cxd6 {[%clk 0:01:15]} 25... Kxd5 {[%clk 0:01:43.3]} 26. d7 {[%clk
0:01:15.1]} 26... Rxh2+ {[%clk 0:01:36.7]} 27. Kg4 {[%clk 0:01:15.1]} 27... Ke6
{[%clk 0:01:33.1]} 28. d8=Q {[%clk 0:01:09.1]} 28... f5+ {[%clk 0:01:32.8]} 29.
Kg5 {[%clk 0:01:00]} 1-0